[Event "November 21 Early 2023"]
[Site "https://www.chess.com"]
[Date "2023.11.21"]
[Round "1"]
[White "Koepke, Christian"]
[Black "Makarian, Rudik"]
[Result "0-1"]
[Board "30"]
[TimeControl "180+1"]
[WhiteFideId "4655737"]
[BlackFideId "44105681"]
[WhiteElo "2238"]
[BlackElo "2539"]
[WhiteTeam "GER"]
[BlackTeam "FID"]
[WhiteClock "0:00:02"]
[BlackClock "0:00:42"]

1. e4 {[%clk 0:03:00]}  c5 {[%clk 0:02:58]} 2. Be2 {[%clk 0:02:58]}  Nc6 {[%clk 0:02:57]} 3. f4 {[%clk 0:02:57]}  e6 {[%clk 0:02:57]} 4. Nf3 {[%clk 0:02:57]}  d5 {[%clk 0:02:56]} 5. d3 {[%clk 0:02:58]}  Be7 {[%clk 0:02:51]} 6. O-O {[%clk 0:02:57]}  Nh6 {[%clk 0:02:51]} 7. c3 {[%clk 0:02:54]}  O-O {[%clk 0:02:50]} 8. Kh1 {[%clk 0:02:53]}  f6 {[%clk 0:02:48]} 9. Be3 {[%clk 0:02:52]}  b6 {[%clk 0:02:47]} 10. a3 {[%clk 0:02:37]}  Bb7 {[%clk 0:02:45]} 11. b4 {[%clk 0:02:36]}  Qd7 {[%clk 0:02:44]} 12. Qc2 {[%clk 0:02:15]}  Rac8 {[%clk 0:02:42]} 13. b5 {[%clk 0:02:15]}  Na5 {[%clk 0:02:38]} 14. e5 {[%clk 0:02:04]}  d4 {[%clk 0:02:36]} 15. Bg1 {[%clk 0:02:01]}  Qxb5 {[%clk 0:02:32]} 16. c4 {[%clk 0:01:54]}  Qb3 {[%clk 0:02:22]} 17. Qd2 {[%clk 0:01:48]}  Qa4 {[%clk 0:02:22]} 18. Bd1 {[%clk 0:01:45]}  Qd7 {[%clk 0:02:21]} 19. Qe1 {[%clk 0:01:36]}  Nf5 {[%clk 0:02:14]} 20. Nbd2 {[%clk 0:01:35]}  Nc6 {[%clk 0:01:51]} 21. Ne4 {[%clk 0:01:32]}  fxe5 {[%clk 0:01:50]} 22. Nxe5 {[%clk 0:01:22]}  Nxe5 {[%clk 0:01:50]} 23. fxe5 {[%clk 0:01:23]}  Ne3 {[%clk 0:01:40]} 24. Bxe3 {[%clk 0:00:57]}  Rxf1+ {[%clk 0:01:37]} 25. Qxf1 {[%clk 0:00:57]}  dxe3 {[%clk 0:01:38]} 26. Bf3 {[%clk 0:00:56]}  Rf8 {[%clk 0:01:35]} 27. Qe2 {[%clk 0:00:52]}  Bxe4 {[%clk 0:01:29]} 28. Bxe4 {[%clk 0:00:42]}  Qd4 {[%clk 0:01:29]} 29. Re1 {[%clk 0:00:41]}  Rf2 {[%clk 0:01:10]} 30. Qh5 {[%clk 0:00:37]}  g6 {[%clk 0:01:10]} 31. Qh3 {[%clk 0:00:27]}  e2 {[%clk 0:00:57]} 32. Qxe6+ {[%clk 0:00:26]}  Kf8 {[%clk 0:00:57]} 33. Qc8+ {[%clk 0:00:15]}  Kg7 {[%clk 0:00:56]} 34. h3 {[%clk 0:00:07]}  Rf1+ {[%clk 0:00:50]} 35. Kh2 {[%clk 0:00:07]}  Qg1+ {[%clk 0:00:41]} 36. Kg3 {[%clk 0:00:07]}  Qf2+ {[%clk 0:00:41]} 37. Kh2 {[%clk 0:00:04]}  Qf4+ {[%clk 0:00:41]} 38. g3 {[%clk 0:00:03]}  Qf2+ {[%clk 0:00:42]} 39. Bg2 {[%clk 0:00:02]}  Qg1# {[%clk 0:00:42]} 0-1

[Event "November 21 Early 2023"]
[Site "https://www.chess.com"]
[Date "2023.11.21"]
[Round "1"]
[White "Rasulov, Vugar"]
[Black "only_strong_moves"]
[Result "1-0"]
[Board "31"]
[TimeControl "180+1"]
[WhiteFideId "13402390"]
[WhiteElo "2517"]
[BlackElo "2502"]
[WhiteTeam "AZE"]
[WhiteClock "0:01:31"]
[BlackClock "0:01:12"]

1. e4 {[%clk 0:03:00]}  e5 {[%clk 0:02:59]} 2. Nf3 {[%clk 0:03:00]}  Nc6 {[%clk 0:02:59]} 3. Bc4 {[%clk 0:03:01]}  Bc5 {[%clk 0:02:55]} 4. d3 {[%clk 0:03:01]}  d6 {[%clk 0:02:55]} 5. O-O {[%clk 0:02:59]}  Nf6 {[%clk 0:02:55]} 6. Bg5 {[%clk 0:02:58]}  h6 {[%clk 0:02:55]} 7. Bh4 {[%clk 0:02:58]}  O-O {[%clk 0:02:46]} 8. c3 {[%clk 0:02:56]}  Bb6 {[%clk 0:02:46]} 9. Nbd2 {[%clk 0:02:55]}  Nb8 {[%clk 0:02:46]} 10. Bb3 {[%clk 0:02:53]}  Nbd7 {[%clk 0:02:46]} 11. Nc4 {[%clk 0:02:53]}  Qe8 {[%clk 0:02:34]} 12. Bc2 {[%clk 0:02:50]}  Nh7 {[%clk 0:02:23]} 13. d4 {[%clk 0:02:48]}  f5 {[%clk 0:02:02]} 14. dxe5 {[%clk 0:02:37]}  fxe4 {[%clk 0:02:02]} 15. Bxe4 {[%clk 0:02:35]}  Nxe5 {[%clk 0:01:59]} 16. Ncxe5 {[%clk 0:02:32]}  dxe5 {[%clk 0:02:00]} 17. Qd5+ {[%clk 0:02:31]}  Kh8 {[%clk 0:01:59]} 18. Qxe5 {[%clk 0:02:29]}  Qf7 {[%clk 0:01:54]} 19. Qg3 {[%clk 0:02:08]}  Bf5 {[%clk 0:01:52]} 20. Ne5 {[%clk 0:02:07]}  Qh5 {[%clk 0:01:40]} 21. Bxf5 {[%clk 0:01:53]}  Rxf5 {[%clk 0:01:37]} 22. Ng6+ {[%clk 0:01:53]}  Kg8 {[%clk 0:01:37]} 23. Ne7+ {[%clk 0:01:54]}  Kf7 {[%clk 0:01:37]} 24. Nxf5 {[%clk 0:01:54]}  Qxf5 {[%clk 0:01:38]} 25. Qf3 {[%clk 0:01:41]}  Qxf3 {[%clk 0:01:37]} 26. gxf3 {[%clk 0:01:42]}  h5 {[%clk 0:01:32]} 27. Rad1 {[%clk 0:01:41]}  Kg8 {[%clk 0:01:21]} 28. Rfe1 {[%clk 0:01:31]}  g5 {[%clk 0:01:12]} 29. Bg3 {[%clk 0:01:31]} 1-0

[Event "November 21 Early 2023"]
[Site "https://www.chess.com"]
[Date "2023.11.21"]
[Round "1"]
[White "Zhigalko, Sergei"]
[Black "UNSTOPPABLE_LEGEND"]
[Result "1-0"]
[Board "33"]
[TimeControl "180+1"]
[WhiteFideId "13502956"]
[WhiteElo "2616"]
[BlackElo "2501"]
[WhiteTeam "BLR"]
[WhiteClock "0:01:37"]
[BlackClock "0:00:00"]

1. e4 {[%clk 0:03:00]}  e6 {[%clk 0:02:57]} 2. d4 {[%clk 0:03:01]}  d5 {[%clk 0:02:58]} 3. e5 {[%clk 0:03:01]}  c5 {[%clk 0:02:57]} 4. c3 {[%clk 0:03:02]}  Nc6 {[%clk 0:02:58]} 5. Nf3 {[%clk 0:03:03]}  Bd7 {[%clk 0:02:58]} 6. Be2 {[%clk 0:03:03]}  Nge7 {[%clk 0:02:56]} 7. Na3 {[%clk 0:03:02]}  Ng6 {[%clk 0:02:53]} 8. h4 {[%clk 0:03:02]}  cxd4 {[%clk 0:02:23]} 9. cxd4 {[%clk 0:03:02]}  Bb4+ {[%clk 0:02:14]} 10. Kf1 {[%clk 0:03:02]}  h6 {[%clk 0:02:08]} 11. Nc2 {[%clk 0:03:01]}  Ba5 {[%clk 0:02:00]} 12. h5 {[%clk 0:02:55]}  Nge7 {[%clk 0:02:00]} 13. g3 {[%clk 0:02:55]}  Rc8 {[%clk 0:01:58]} 14. Kg2 {[%clk 0:02:55]}  Bb6 {[%clk 0:01:55]} 15. Bf4 {[%clk 0:02:47]}  Na5 {[%clk 0:00:44]} 16. b3 {[%clk 0:02:43]}  a6 {[%clk 0:00:43]} 17. Ne3 {[%clk 0:02:29]}  Bb5 {[%clk 0:00:37]} 18. Bxb5+ {[%clk 0:02:27]}  axb5 {[%clk 0:00:38]} 19. Qd3 {[%clk 0:02:27]}  Qd7 {[%clk 0:00:35]} 20. Rac1 {[%clk 0:02:27]}  O-O {[%clk 0:00:35]} 21. Ng4 {[%clk 0:02:16]}  Nf5 {[%clk 0:00:31]} 22. Nh4 {[%clk 0:02:02]}  Nxh4+ {[%clk 0:00:25]} 23. Rxh4 {[%clk 0:02:02]}  Kh8 {[%clk 0:00:24]} 24. Bxh6 {[%clk 0:02:00]}  Rg8 {[%clk 0:00:08]} 25. Rxc8 {[%clk 0:01:40]}  Qxc8 {[%clk 0:00:08]} 26. Bg5 {[%clk 0:01:40]}  Nc6 {[%clk 0:00:05]} 27. h6 {[%clk 0:01:37]}  g6 {[%clk 0:00:00]} 28. h7 {[%clk 0:01:37]} 1-0

[Event "November 21 Early 2023"]
[Site "https://www.chess.com"]
[Date "2023.11.21"]
[Round "1"]
[White "Rodriguez, Santiago"]
[Black "Henriquez Villagra, Cristobal"]
[Result "0-1"]
[Board "34"]
[TimeControl "180+1"]
[WhiteFideId "3000591"]
[BlackFideId "3409350"]
[WhiteElo "2249"]
[BlackElo "2572"]
[WhiteTeam "URU"]
[BlackTeam "CHI"]
[WhiteClock "0:01:01"]
[BlackClock "0:01:18"]

1. d4 {[%clk 0:02:58]}  Nf6 {[%clk 0:02:58]} 2. Bg5 {[%clk 0:02:58]}  d6 {[%clk 0:02:58]} 3. Bxf6 {[%clk 0:02:58]}  exf6 {[%clk 0:02:58]} 4. e3 {[%clk 0:02:58]}  h5 {[%clk 0:02:58]} 5. c4 {[%clk 0:02:55]}  h4 {[%clk 0:02:58]} 6. Nc3 {[%clk 0:02:55]}  f5 {[%clk 0:02:52]} 7. h3 {[%clk 0:02:52]}  Nd7 {[%clk 0:02:52]} 8. Be2 {[%clk 0:02:51]}  Nf6 {[%clk 0:02:52]} 9. Qc2 {[%clk 0:02:51]}  Be7 {[%clk 0:02:31]} 10. O-O-O {[%clk 0:02:49]}  a6 {[%clk 0:02:26]} 11. Bf3 {[%clk 0:02:48]}  Rb8 {[%clk 0:02:26]} 12. Nge2 {[%clk 0:02:43]}  Kf8 {[%clk 0:02:23]} 13. Nf4 {[%clk 0:02:40]}  c6 {[%clk 0:02:15]} 14. Kb1 {[%clk 0:02:39]}  Bd7 {[%clk 0:02:14]} 15. e4 {[%clk 0:02:31]}  fxe4 {[%clk 0:01:51]} 16. Nxe4 {[%clk 0:02:32]}  Nxe4 {[%clk 0:01:49]} 17. Bxe4 {[%clk 0:02:33]}  Bg5 {[%clk 0:01:42]} 18. Ne2 {[%clk 0:02:28]}  Qf6 {[%clk 0:01:38]} 19. f4 {[%clk 0:01:51]}  Bh6 {[%clk 0:01:38]} 20. Rhf1 {[%clk 0:01:50]}  Ke7 {[%clk 0:01:30]} 21. Nc3 {[%clk 0:01:49]}  Rhe8 {[%clk 0:01:30]} 22. f5 {[%clk 0:01:42]}  Kf8 {[%clk 0:01:28]} 23. d5 {[%clk 0:01:40]}  c5 {[%clk 0:01:28]} 24. Bd3 {[%clk 0:01:39]}  b5 {[%clk 0:01:22]} 25. Ne4 {[%clk 0:01:38]}  Rxe4 {[%clk 0:01:20]} 26. Bxe4 {[%clk 0:01:37]}  bxc4 {[%clk 0:01:20]} 27. Rf2 {[%clk 0:01:30]}  Be3 {[%clk 0:01:20]} 28. Re2 {[%clk 0:01:25]}  Bd4 {[%clk 0:01:20]} 29. Qxc4 {[%clk 0:01:01]}  Bb5 {[%clk 0:01:18]} 0-1

[Event "November 21 Early 2023"]
[Site "https://www.chess.com"]
[Date "2023.11.21"]
[Round "1"]
[White "Shimanov, Aleksandr"]
[Black "Panda Sambit"]
[Result "1-0"]
[Board "37"]
[TimeControl "180+1"]
[WhiteFideId "4198603"]
[BlackFideId "25091794"]
[WhiteElo "2611"]
[BlackElo "2216"]
[WhiteTeam "RUS"]
[BlackTeam "IND"]
[WhiteClock "0:01:33"]
[BlackClock "0:01:14"]

1. g3 {[%clk 0:02:55]}  d5 {[%clk 0:02:58]} 2. Bg2 {[%clk 0:02:54]}  c5 {[%clk 0:02:59]} 3. c4 {[%clk 0:02:51]}  d4 {[%clk 0:02:57]} 4. e3 {[%clk 0:02:50]}  Nc6 {[%clk 0:02:56]} 5. d3 {[%clk 0:02:48]}  e5 {[%clk 0:02:54]} 6. Nf3 {[%clk 0:02:47]}  Nf6 {[%clk 0:02:53]} 7. O-O {[%clk 0:02:47]}  Be7 {[%clk 0:02:52]} 8. exd4 {[%clk 0:02:46]}  cxd4 {[%clk 0:02:53]} 9. Re1 {[%clk 0:02:44]}  Nd7 {[%clk 0:02:52]} 10. Na3 {[%clk 0:02:41]}  O-O {[%clk 0:02:50]} 11. Nc2 {[%clk 0:02:41]}  a5 {[%clk 0:02:50]} 12. b3 {[%clk 0:02:40]}  Qc7 {[%clk 0:02:50]} 13. Rb1 {[%clk 0:02:39]}  Ra6 {[%clk 0:02:47]} 14. a3 {[%clk 0:02:37]}  Rb6 {[%clk 0:02:46]} 15. Nfxd4 {[%clk 0:02:09]}  exd4 {[%clk 0:01:57]} 16. Bxc6 {[%clk 0:02:08]}  Ne5 {[%clk 0:01:43]} 17. Be4 {[%clk 0:02:01]}  Bg4 {[%clk 0:01:42]} 18. f3 {[%clk 0:01:58]}  Bh5 {[%clk 0:01:41]} 19. Bf4 {[%clk 0:01:55]}  Bd6 {[%clk 0:01:37]} 20. Bxe5 {[%clk 0:01:49]}  Bxe5 {[%clk 0:01:37]} 21. Qd2 {[%clk 0:01:48]}  Kh8 {[%clk 0:01:27]} 22. f4 {[%clk 0:01:42]}  Bf6 {[%clk 0:01:20]} 23. Qxa5 {[%clk 0:01:35]}  Re8 {[%clk 0:01:14]} 24. Qxh5 {[%clk 0:01:33]} 1-0

[Event "November 21 Early 2023"]
[Site "https://www.chess.com"]
[Date "2023.11.21"]
[Round "1"]
[White "Pap, Gyula"]
[Black "Jesseinkman"]
[Result "1-0"]
[Board "39"]
[TimeControl "180+1"]
[WhiteFideId "725323"]
[WhiteElo "2525"]
[BlackElo "2495"]
[WhiteTeam "HUN"]
[WhiteClock "0:00:25"]
[BlackClock "0:00:01"]

1. Nc3 {[%clk 0:03:00]}  Nf6 {[%clk 0:02:54]} 2. Nf3 {[%clk 0:02:57]}  d5 {[%clk 0:02:53]} 3. e3 {[%clk 0:02:57]}  c5 {[%clk 0:02:53]} 4. Bb5+ {[%clk 0:02:50]}  Bd7 {[%clk 0:02:49]} 5. Qe2 {[%clk 0:02:49]}  e6 {[%clk 0:02:47]} 6. Bxd7+ {[%clk 0:02:39]}  Nbxd7 {[%clk 0:02:46]} 7. d3 {[%clk 0:02:39]}  Bd6 {[%clk 0:02:43]} 8. e4 {[%clk 0:02:38]}  d4 {[%clk 0:02:34]} 9. Nb1 {[%clk 0:02:36]}  e5 {[%clk 0:02:33]} 10. a4 {[%clk 0:02:34]}  O-O {[%clk 0:02:32]} 11. O-O {[%clk 0:02:35]}  a6 {[%clk 0:02:18]} 12. a5 {[%clk 0:02:30]}  Nb8 {[%clk 0:02:18]} 13. Nbd2 {[%clk 0:02:27]}  Nc6 {[%clk 0:02:18]} 14. Nc4 {[%clk 0:02:27]}  Bc7 {[%clk 0:02:18]} 15. Bd2 {[%clk 0:02:27]}  h6 {[%clk 0:02:18]} 16. Nh4 {[%clk 0:02:16]}  Ne7 {[%clk 0:01:46]} 17. g3 {[%clk 0:02:06]}  Ng6 {[%clk 0:01:40]} 18. Nf5 {[%clk 0:02:02]}  Nd7 {[%clk 0:01:27]} 19. h4 {[%clk 0:01:56]}  Ne7 {[%clk 0:01:24]} 20. Nxe7+ {[%clk 0:01:40]}  Qxe7 {[%clk 0:01:25]} 21. h5 {[%clk 0:01:41]}  Qe6 {[%clk 0:01:15]} 22. Kg2 {[%clk 0:01:39]}  Rae8 {[%clk 0:01:11]} 23. Rae1 {[%clk 0:01:32]}  f5 {[%clk 0:01:07]} 24. exf5 {[%clk 0:01:27]}  Qxf5 {[%clk 0:01:08]} 25. Qe4 {[%clk 0:01:22]}  Qxe4+ {[%clk 0:01:01]} 26. dxe4 {[%clk 0:01:10]}  Nb8 {[%clk 0:00:58]} 27. f4 {[%clk 0:01:07]}  Nc6 {[%clk 0:00:58]} 28. f5 {[%clk 0:01:07]}  Rd8 {[%clk 0:00:40]} 29. Rf3 {[%clk 0:01:06]}  d3 {[%clk 0:00:35]} 30. Rxd3 {[%clk 0:01:06]}  Rxd3 {[%clk 0:00:34]} 31. cxd3 {[%clk 0:01:06]}  Rd8 {[%clk 0:00:35]} 32. Re3 {[%clk 0:01:06]}  Nd4 {[%clk 0:00:35]} 33. Bc3 {[%clk 0:01:05]}  Nc2 {[%clk 0:00:19]} 34. Re2 {[%clk 0:01:03]}  Nb4 {[%clk 0:00:19]} 35. Bxb4 {[%clk 0:01:02]}  cxb4 {[%clk 0:00:19]} 36. Rd2 {[%clk 0:01:00]}  Rd4 {[%clk 0:00:18]} 37. b3 {[%clk 0:00:57]}  Kf7 {[%clk 0:00:18]} 38. Kf3 {[%clk 0:00:57]}  Kf6 {[%clk 0:00:17]} 39. Rc2 {[%clk 0:00:58]}  Rxd3+ {[%clk 0:00:14]} 40. Ke2 {[%clk 0:00:58]}  Rxg3 {[%clk 0:00:13]} 41. Ne3 {[%clk 0:00:58]}  Bxa5 {[%clk 0:00:11]} 42. Rc8 {[%clk 0:00:51]}  Kg5 {[%clk 0:00:08]} 43. Nd5 {[%clk 0:00:51]}  Kxh5 {[%clk 0:00:08]} 44. Rg8 {[%clk 0:00:47]}  Rxb3 {[%clk 0:00:03]} 45. Rxg7 {[%clk 0:00:46]}  Rb2+ {[%clk 0:00:03]} 46. Kd3 {[%clk 0:00:47]}  b3 {[%clk 0:00:03]} 47. Rxb7 {[%clk 0:00:32]}  Rd2+ {[%clk 0:00:02]} 48. Ke3 {[%clk 0:00:33]}  b2 {[%clk 0:00:03]} 49. f6 {[%clk 0:00:33]}  Rd1 {[%clk 0:00:02]} 50. Rxb2 {[%clk 0:00:31]}  Rf1 {[%clk 0:00:02]} 51. Rh2+ {[%clk 0:00:29]}  Kg6 {[%clk 0:00:02]} 52. Rg2+ {[%clk 0:00:30]}  Kf7 {[%clk 0:00:02]} 53. Rg7+ {[%clk 0:00:31]}  Ke6 {[%clk 0:00:02]} 54. Re7+ {[%clk 0:00:30]}  Kd6 {[%clk 0:00:03]} 55. Ra7 {[%clk 0:00:31]}  Kc6 {[%clk 0:00:02]} 56. Rxa6+ {[%clk 0:00:30]}  Kb5 {[%clk 0:00:02]} 57. Re6 {[%clk 0:00:29]}  h5 {[%clk 0:00:02]} 58. Rxe5 {[%clk 0:00:29]}  Bb6+ {[%clk 0:00:01]} 59. Nxb6+ {[%clk 0:00:28]}  Kxb6 {[%clk 0:00:02]} 60. Rf5 {[%clk 0:00:25]}  Rxf5 {[%clk 0:00:02]} 61. exf5 {[%clk 0:00:24]}  Kc6 {[%clk 0:00:01]} 62. f7 {[%clk 0:00:25]} 1-0

[Event "November 21 Early 2023"]
[Site "https://www.chess.com"]
[Date "2023.11.21"]
[Round "1"]
[White "BM223344"]
[Black "mind1mover"]
[Result "0-1"]
[Board "40"]
[TimeControl "180+1"]
[WhiteElo "2494"]
[BlackElo "2894"]
[WhiteClock "0:00:59"]
[BlackClock "0:01:08"]

1. d4 {[%clk 0:03:00]}  d5 {[%clk 0:02:57]} 2. Nf3 {[%clk 0:03:01]}  Nc6 {[%clk 0:02:53]} 3. c4 {[%clk 0:03:00]}  e6 {[%clk 0:02:53]} 4. Nc3 {[%clk 0:03:00]}  Bb4 {[%clk 0:02:53]} 5. e3 {[%clk 0:03:00]}  Nf6 {[%clk 0:02:52]} 6. Bd3 {[%clk 0:02:59]}  dxc4 {[%clk 0:02:48]} 7. Bxc4 {[%clk 0:03:00]}  O-O {[%clk 0:02:46]} 8. O-O {[%clk 0:03:00]}  b6 {[%clk 0:02:43]} 9. a3 {[%clk 0:03:00]}  Bxc3 {[%clk 0:02:43]} 10. bxc3 {[%clk 0:03:01]}  Na5 {[%clk 0:02:42]} 11. Bd3 {[%clk 0:03:01]}  Bb7 {[%clk 0:02:42]} 12. Re1 {[%clk 0:03:00]}  Be4 {[%clk 0:02:35]} 13. Qc2 {[%clk 0:02:56]}  Bxf3 {[%clk 0:02:30]} 14. gxf3 {[%clk 0:02:56]}  c5 {[%clk 0:02:30]} 15. Bb2 {[%clk 0:02:51]}  Rc8 {[%clk 0:02:29]} 16. Qe2 {[%clk 0:02:51]}  h6 {[%clk 0:02:17]} 17. Rad1 {[%clk 0:02:50]}  Qd5 {[%clk 0:02:06]} 18. f4 {[%clk 0:02:45]}  cxd4 {[%clk 0:01:51]} 19. cxd4 {[%clk 0:02:44]}  Qb3 {[%clk 0:01:42]} 20. e4 {[%clk 0:02:11]}  Nc4 {[%clk 0:01:41]} 21. Bc1 {[%clk 0:02:02]}  Nxa3 {[%clk 0:01:38]} 22. e5 {[%clk 0:02:03]}  Nd5 {[%clk 0:01:30]} 23. Qg4 {[%clk 0:01:40]}  Rxc1 {[%clk 0:01:25]} 24. Rxc1 {[%clk 0:01:12]}  Qxd3 {[%clk 0:01:24]} 25. Rcd1 {[%clk 0:01:13]}  Qg6 {[%clk 0:01:19]} 26. Qg3 {[%clk 0:01:11]}  Nc2 {[%clk 0:01:10]} 27. Re2 {[%clk 0:00:59]}  Nc3 {[%clk 0:01:08]} 0-1

[Event "November 21 Early 2023"]
[Site "https://www.chess.com"]
[Date "2023.11.21"]
[Round "1"]
[White "Kamsky, Gata"]
[Black "Kochiev, Ivan"]
[Result "1-0"]
[Board "41"]
[TimeControl "180+1"]
[WhiteFideId "2000024"]
[BlackFideId "2917890"]
[WhiteElo "2660"]
[BlackElo "2285"]
[WhiteTeam "USA"]
[BlackTeam "BUL"]
[WhiteClock "0:02:06"]
[BlackClock "0:00:23"]

1. d4 {[%clk 0:03:00]}  Nf6 {[%clk 0:02:59]} 2. Nf3 {[%clk 0:02:57]}  g6 {[%clk 0:02:58]} 3. c3 {[%clk 0:02:55]}  Bg7 {[%clk 0:02:56]} 4. Bg5 {[%clk 0:02:54]}  d6 {[%clk 0:02:38]} 5. Nbd2 {[%clk 0:02:53]}  Nc6 {[%clk 0:02:33]} 6. e4 {[%clk 0:02:53]}  e5 {[%clk 0:02:33]} 7. dxe5 {[%clk 0:02:50]}  dxe5 {[%clk 0:02:26]} 8. Bb5 {[%clk 0:02:49]}  Qd6 {[%clk 0:01:50]} 9. O-O {[%clk 0:02:48]}  O-O {[%clk 0:01:50]} 10. Re1 {[%clk 0:02:47]}  Nd7 {[%clk 0:01:43]} 11. Qc2 {[%clk 0:02:41]}  a6 {[%clk 0:01:39]} 12. Bf1 {[%clk 0:02:39]}  b6 {[%clk 0:01:34]} 13. Nc4 {[%clk 0:02:37]}  Qe6 {[%clk 0:01:34]} 14. Ne3 {[%clk 0:02:36]}  Bb7 {[%clk 0:01:05]} 15. Rad1 {[%clk 0:02:33]}  b5 {[%clk 0:00:51]} 16. a4 {[%clk 0:02:31]}  Nc5 {[%clk 0:00:39]} 17. axb5 {[%clk 0:02:30]}  axb5 {[%clk 0:00:40]} 18. Bxb5 {[%clk 0:02:24]}  Na7 {[%clk 0:00:23]} 19. Bc4 {[%clk 0:02:23]}  Qg4 {[%clk 0:00:23]} 20. Nxg4 {[%clk 0:02:06]} 1-0

[Event "November 21 Early 2023"]
[Site "https://www.chess.com"]
[Date "2023.11.21"]
[Round "1"]
[White "Jamal-Jamal-Jamal"]
[Black "Rustemov, Alexander"]
[Result "0-1"]
[Board "42"]
[TimeControl "180+1"]
[BlackFideId "4119002"]
[WhiteElo "2491"]
[BlackElo "2889"]
[BlackTeam "RUS"]
[WhiteClock "0:00:00"]
[BlackClock "0:00:23"]

1. d4 {[%clk 0:03:00]}  d5 {[%clk 0:02:58]} 2. c4 {[%clk 0:03:00]}  c6 {[%clk 0:02:58]} 3. e3 {[%clk 0:03:00]}  Nf6 {[%clk 0:02:58]} 4. Nf3 {[%clk 0:03:00]}  a6 {[%clk 0:02:56]} 5. Nc3 {[%clk 0:02:55]}  b5 {[%clk 0:02:55]} 6. cxd5 {[%clk 0:02:55]}  cxd5 {[%clk 0:02:55]} 7. Bd3 {[%clk 0:02:54]}  Bb7 {[%clk 0:02:55]} 8. O-O {[%clk 0:02:53]}  e6 {[%clk 0:02:55]} 9. Ne2 {[%clk 0:02:36]}  Bd6 {[%clk 0:02:49]} 10. Ng3 {[%clk 0:02:35]}  Nbd7 {[%clk 0:02:45]} 11. a4 {[%clk 0:02:32]}  b4 {[%clk 0:02:44]} 12. a5 {[%clk 0:02:31]}  O-O {[%clk 0:02:36]} 13. Qe2 {[%clk 0:02:27]}  Bc7 {[%clk 0:02:32]} 14. Bd2 {[%clk 0:02:14]}  Bxa5 {[%clk 0:02:32]} 15. Ra4 {[%clk 0:02:06]}  Bc6 {[%clk 0:02:18]} 16. Ra2 {[%clk 0:02:05]}  Ne4 {[%clk 0:01:45]} 17. Rfa1 {[%clk 0:01:59]}  Nxd2 {[%clk 0:01:42]} 18. Qxd2 {[%clk 0:01:48]}  Bc7 {[%clk 0:01:40]} 19. Rxa6 {[%clk 0:01:40]}  Rxa6 {[%clk 0:01:40]} 20. Rxa6 {[%clk 0:01:40]}  Bb7 {[%clk 0:01:40]} 21. Ra1 {[%clk 0:01:21]}  Bd6 {[%clk 0:01:39]} 22. h4 {[%clk 0:01:17]}  h6 {[%clk 0:01:38]} 23. h5 {[%clk 0:01:14]}  Bxg3 {[%clk 0:01:34]} 24. fxg3 {[%clk 0:01:13]}  Qb6 {[%clk 0:01:32]} 25. Ra4 {[%clk 0:01:09]}  Bc6 {[%clk 0:01:24]} 26. Rxb4 {[%clk 0:01:08]}  Qc7 {[%clk 0:01:21]} 27. Qc3 {[%clk 0:01:05]}  Qd6 {[%clk 0:01:08]} 28. Ne5 {[%clk 0:01:03]}  Rc8 {[%clk 0:00:52]} 29. Nxd7 {[%clk 0:00:20]}  Bxd7 {[%clk 0:00:49]} 30. Qd2 {[%clk 0:00:21]}  Qxg3 {[%clk 0:00:47]} 31. Rb7 {[%clk 0:00:17]}  Bc6 {[%clk 0:00:44]} 32. Ra7 {[%clk 0:00:16]}  Rb8 {[%clk 0:00:38]} 33. b4 {[%clk 0:00:16]}  Qd6 {[%clk 0:00:30]} 34. Ra6 {[%clk 0:00:12]}  Qd7 {[%clk 0:00:28]} 35. b5 {[%clk 0:00:07]}  Bxb5 {[%clk 0:00:28]} 36. Bxb5 {[%clk 0:00:07]}  Qxb5 {[%clk 0:00:27]} 37. Ra7 {[%clk 0:00:07]}  Qb6 {[%clk 0:00:24]} 38. Qa2 {[%clk 0:00:05]}  Qb1+ {[%clk 0:00:24]} 39. Kf2 {[%clk 0:00:00]}  Rb2+ {[%clk 0:00:23]} 0-1

[Event "November 21 Early 2023"]
[Site "https://www.chess.com"]
[Date "2023.11.21"]
[Round "1"]
[White "Kazmin_Semyon"]
[Black "Mikhailovsky, Vladimir"]
[Result "0-1"]
[Board "44"]
[TimeControl "180+1"]
[BlackFideId "34105414"]
[WhiteElo "2491"]
[BlackElo "2257"]
[BlackTeam "RUS"]
[WhiteClock "0:00:04"]
[BlackClock "0:00:08"]

1. e4 {[%clk 0:02:59]}  Nf6 {[%clk 0:02:58]} 2. e5 {[%clk 0:02:55]}  Nd5 {[%clk 0:02:58]} 3. d4 {[%clk 0:02:55]}  d6 {[%clk 0:02:59]} 4. c4 {[%clk 0:02:56]}  Nb6 {[%clk 0:02:59]} 5. f4 {[%clk 0:02:57]}  Bf5 {[%clk 0:02:58]} 6. Nc3 {[%clk 0:02:55]}  dxe5 {[%clk 0:02:59]} 7. fxe5 {[%clk 0:02:56]}  e6 {[%clk 0:02:59]} 8. Be3 {[%clk 0:02:56]}  Bb4 {[%clk 0:02:58]} 9. a3 {[%clk 0:02:52]}  Bxc3+ {[%clk 0:02:52]} 10. bxc3 {[%clk 0:02:53]}  c5 {[%clk 0:02:53]} 11. a4 {[%clk 0:02:38]}  O-O {[%clk 0:02:34]} 12. a5 {[%clk 0:02:32]}  N6d7 {[%clk 0:02:33]} 13. Nf3 {[%clk 0:02:32]}  cxd4 {[%clk 0:02:20]} 14. cxd4 {[%clk 0:02:33]}  Nc6 {[%clk 0:02:20]} 15. Qa4 {[%clk 0:02:20]}  Rc8 {[%clk 0:01:47]} 16. Be2 {[%clk 0:02:07]}  b6 {[%clk 0:01:37]} 17. axb6 {[%clk 0:01:52]}  Nxb6 {[%clk 0:01:35]} 18. Qb5 {[%clk 0:01:49]}  Be4 {[%clk 0:01:17]} 19. Rd1 {[%clk 0:01:27]}  Bc2 {[%clk 0:00:55]} 20. Ra1 {[%clk 0:01:15]}  Be4 {[%clk 0:00:51]} 21. Rd1 {[%clk 0:01:14]}  a6 {[%clk 0:00:36]} 22. Qc5 {[%clk 0:00:46]}  Ne7 {[%clk 0:00:17]} 23. Qb4 {[%clk 0:00:46]}  Nf5 {[%clk 0:00:16]} 24. Bf2 {[%clk 0:00:44]}  a5 {[%clk 0:00:15]} 25. Qb5 {[%clk 0:00:37]}  Qc7 {[%clk 0:00:07]} 26. O-O {[%clk 0:00:19]}  Nxc4 {[%clk 0:00:07]} 27. Rc1 {[%clk 0:00:19]}  Na3 {[%clk 0:00:08]} 28. Qb2 {[%clk 0:00:17]}  Qe7 {[%clk 0:00:08]} 29. Nd2 {[%clk 0:00:13]}  Bd5 {[%clk 0:00:07]} 30. Ra1 {[%clk 0:00:11]}  Rc2 {[%clk 0:00:05]} 31. Qxa3 {[%clk 0:00:09]}  Qxa3 {[%clk 0:00:06]} 32. Rxa3 {[%clk 0:00:10]}  Rxd2 {[%clk 0:00:07]} 33. Bg4 {[%clk 0:00:05]}  Nxd4 {[%clk 0:00:07]} 34. Rxa5 {[%clk 0:00:02]}  Ne2+ {[%clk 0:00:04]} 35. Bxe2 {[%clk 0:00:02]}  Rxe2 {[%clk 0:00:05]} 36. h3 {[%clk 0:00:01]}  Rxe5 {[%clk 0:00:05]} 37. Bc5 {[%clk 0:00:01]}  Rc8 {[%clk 0:00:03]} 38. Bd4 {[%clk 0:00:02]}  Re2 {[%clk 0:00:03]} 39. Rf2 {[%clk 0:00:02]}  Rc1+ {[%clk 0:00:02]} 40. Kh2 {[%clk 0:00:03]}  Rxf2 {[%clk 0:00:03]} 41. Bxf2 {[%clk 0:00:04]}  Rc2 {[%clk 0:00:03]} 42. Kg3 {[%clk 0:00:03]}  h6 {[%clk 0:00:04]} 43. Ra3 {[%clk 0:00:02]}  h5 {[%clk 0:00:04]} 44. Ra4 {[%clk 0:00:03]}  Rc3+ {[%clk 0:00:03]} 45. Kf4 {[%clk 0:00:03]}  Rc2 {[%clk 0:00:03]} 46. Kg3 {[%clk 0:00:03]}  g5 {[%clk 0:00:04]} 47. h4 {[%clk 0:00:03]}  f6 {[%clk 0:00:03]} 48. Rb4 {[%clk 0:00:02]}  Kf7 {[%clk 0:00:03]} 49. Ra4 {[%clk 0:00:02]}  Kg6 {[%clk 0:00:03]} 50. Rb4 {[%clk 0:00:03]}  Kf5 {[%clk 0:00:04]} 51. Ra4 {[%clk 0:00:03]}  e5 {[%clk 0:00:05]} 52. Rb4 {[%clk 0:00:03]}  Be4 {[%clk 0:00:05]} 53. hxg5 {[%clk 0:00:04]}  fxg5 {[%clk 0:00:06]} 54. Ra4 {[%clk 0:00:03]}  h4+ {[%clk 0:00:06]} 55. Kh2 {[%clk 0:00:02]}  Rxf2 {[%clk 0:00:07]} 56. Kh3 {[%clk 0:00:03]}  Bxg2+ {[%clk 0:00:06]} 57. Kh2 {[%clk 0:00:04]}  Bc6+ {[%clk 0:00:07]} 58. Kg1 {[%clk 0:00:05]}  Bxa4 {[%clk 0:00:07]} 59. Kxf2 {[%clk 0:00:04]}  Kg4 {[%clk 0:00:08]} 0-1